fUSD/lending_fUSD_20260412
["ID","MTS","AMOUNT","RATE_DAILY","PERIOD"]
[420321809,1775962289982,-500.0,0.0003863,8]
[420321810,1775962290007,-500.0,0.0003863,8]
[420321811,1775962290018,-500.0,0.0003863,8]
[420321812,1775962290034,-500.0,0.0003863,8]
[420321813,1775962290051,-654.25,0.0003863,8]
[420321814,1775962290082,-500.0,0.0003863,8]
[420321815,1775962290092,-1224.3,0.0003863,8]
[420321816,1775962290114,-1858.89,0.0003863,8]
[420321817,1775962290129,-1352.03,0.0003863,8]
[420321818,1775962290139,-1886.0,0.0003863,8]
[420321819,1775962290159,-500.0,0.0003863,8]
[420321820,1775962290172,-500.0,0.0003863,8]
[420321821,1775962290184,-1179.27,0.0003863,8]
[420321822,1775962290198,-500.0,0.0003863,8]
[420321823,1775962290212,-500.0,0.0003863,8]
[420321824,1775962290222,-1102.85,0.0003863,8]
[420321825,1775962290235,-3952.97,0.0003863,8]
[420321826,1775962290257,-500.0,0.0003863,8]
[420321827,1775962290267,-1048.2,0.0003863,8]
[420321828,1775962290280,-500.0,0.0003863,8]
[420321829,1775962290303,-500.0,0.0003863,8]
[420321830,1775962290318,-500.0,0.0003863,8]
[420321831,1775962290342,-500.0,0.0003863,8]
[420321832,1775962290358,-1037.69,0.0003863,8]
[420321833,1775962290376,-814.65,0.0003863,8]
[420321834,1775962290405,-500.0,0.0003863,8]
[420321835,1775962290423,-500.0,0.0003863,8]
[420321836,1775962290433,-644.75,0.0003863,8]
[420321837,1775962290444,-500.0,0.0003863,8]
[420321838,1775962290455,-500.0,0.0003863,8]
[420321839,1775962290464,-514.69,0.0003863,8]
[420321840,1775962290474,-500.0,0.0003863,8]
[420321841,1775962290484,-500.0,0.0003863,8]
[420321842,1775962290499,-500.0,0.0003863,8]
[420321843,1775962290509,-885.33,0.0003863,8]
[420321844,1775962290519,-597.13,0.0003863,8]
[420321845,1775962290528,-500.0,0.0003863,8]
[420321846,1775962290542,-1058.61,0.0003863,8]
[420321847,1775962290551,-1918.31,0.0003863,8]
[420321848,1775962290561,-500.0,0.0003863,8]
[420321849,1775962290574,-968.04,0.0003863,8]
[420321850,1775962290986,-1897.43,0.0003863,8]
[420321851,1775962291009,-500.0,0.0003863,8]
[420321852,1775962291023,-681.95,0.0003863,8]
[420321853,1775962291034,-500.0,0.0003863,8]
[420321854,1775962291051,-500.0,0.0003863,8]
[420321855,1775962291063,-500.0,0.0003863,8]
[420321856,1775962291073,-500.0,0.0003863,8]
[420321857,1775962291093,-802.52,0.0003863,8]
[420321858,1775962291104,-500.0,0.0003863,8]
[420321859,1775962291114,-808.99,0.0003863,8]
[420321860,1775962291132,-500.0,0.0003863,8]
[420321861,1775962291153,-4361.48,0.0003863,8]
[420321862,1775962291163,-1914.74,0.0003863,8]
[420321863,1775962291175,-1187.17,0.0003863,8]
[420321864,1775962291188,-1308.79,0.0003863,8]
[420321865,1775962291198,-2995.44,0.0003863,8]
[420321866,1775962291208,-500.0,0.0003863,8]
[420321867,1775962291218,-1873.91,0.0003863,8]
[420321868,1775962291231,-781.32,0.0003863,8]
[420321869,1775962291241,-579.79107627,0.0003863,8]
[420321870,1775962291256,-642.48742257,0.0003863,8]
[420321871,1775962291271,-500.0,0.0003863,8]
[420321872,1775962291281,-2928.83,0.0003863,8]
[420321873,1775962291292,-1045.63,0.0003863,7]
[420321874,1775962291303,-500.0,0.0003863,8]
[420321875,1775962291325,-500.0,0.0003863,8]
[420321876,1775962291335,-775.96,0.0003863,8]
[420321877,1775962291345,-500.0,0.0003863,8]
[420321878,1775962291371,-1468.68,0.0003863,8]
[420321879,1775962291386,-687.84,0.0003863,8]
[420321880,1775962291396,-3098.14,0.0003863,8]
[420321881,1775962291406,-3337.65,0.0003863,8]
[420321882,1775962291420,-905.14,0.0003863,8]
[420321883,1775962291435,-500.0,0.0003863,8]
[420321884,1775962291445,-725.3,0.0003863,8]
[420321885,1775962291462,-500.0,0.0003863,8]
[420321886,1775962291475,-500.0,0.0003863,8]
[420321887,1775962291486,-500.0,0.0003863,8]
[420321888,1775962291513,-500.0,0.0003863,8]
[420321889,1775962291528,-647.44,0.0003863,8]
[420321890,1775962291538,-1626.37,0.0003863,8]
[420321891,1775962291556,-500.0,0.0003863,8]
[420321892,1775962291566,-500.0,0.0003863,8]
[420321893,1775962291576,-500.0,0.0003863,8]
[420321894,1775962291589,-500.0,0.0003863,8]
[420321895,1775962291608,-500.0,0.0003863,8]
[420321896,1775962291627,-715.96,0.0003863,8]
[420321897,1775962291644,-730.67,0.0003863,8]
[420321898,1775962291654,-1773.84,0.0003863,8]
[420321899,1775962291669,-500.0,0.0003863,8]
[420321900,1775962291680,-235.71166317,0.0003863,8]
[420321901,1775962291692,-1639.58,0.0003863,8]
[420321902,1775962291701,-678.25,0.0003863,8]
[420321903,1775962291733,-500.0,0.0003863,8]
[420321904,1775962291743,-500.0,0.0003863,8]
[420321905,1775962291754,-2717.05,0.0003863,8]
[420321906,1775962291785,-500.0,0.0003863,8]
[420321907,1775962291795,-500.0,0.0003863,8]
[420321908,1775962291826,-500.0,0.0003863,8]
[420321909,1775962291840,-917.71,0.0003863,8]
[420321910,1775962291863,-500.0,0.0003863,8]
[420321911,1775962291892,-500.0,0.0003863,8]
[420321912,1775962291909,-500.0,0.0003863,8]
[420321913,1775962291920,-1814.91,0.0003863,8]
[420321914,1775962291940,-1537.98,0.0003863,8]
[420321915,1775962291979,-500.0,0.0003863,8]
[420321916,1775962292070,-500.0,0.0003863,8]
[420321917,1775962292081,-1248.11,0.0003863,8]
[420321918,1775962292114,-1281.26,0.0003863,8]
[420321919,1775962292126,-500.0,0.0003863,8]
[420321920,1775962292142,-500.0,0.0003863,8]
[420321921,1775962292159,-582.3256058,0.0003863,8]
[420321922,1775962292182,-500.0,0.0003863,8]
[420321923,1775962292194,-598.61,0.0003863,8]
[420321924,1775962292217,-500.0,0.0003863,8]
[420321925,1775962292238,-1442.5,0.0003863,8]
[420321926,1775962292256,-500.0,0.0003863,8]
[420321927,1775962292265,-937.8,0.0003863,8]
[420321928,1775962292288,-1815.8,0.0003863,8]
[420321929,1775962292303,-4347.63,0.0003863,8]
[420321930,1775962292315,-2932.2,0.0003863,8]
[420321931,1775962292344,-500.0,0.0003863,8]
[420321932,1775962292354,-1498.55,0.0003863,8]
[420321933,1775962292381,-207.13547773,0.0003863,8]
[420321934,1775962292394,-5706.29,0.0003863,8]
[420321935,1775962292435,-1672.0,0.0003863,8]
[420321936,1775962292461,-1479.42,0.0003863,8]
[420321937,1775962292475,-500.0,0.0003863,8]
[420321938,1775962292494,-500.0,0.0003863,8]
[420321939,1775962292513,-215.02041649,0.0003863,8]
[420321940,1775962292523,-500.0,0.0003863,8]
[420321941,1775962292534,-500.0,0.0003863,8]
[420321942,1775962292568,-500.0,0.0003863,8]
[420321943,1775962292577,-500.0,0.0003863,8]
[420321944,1775962292589,-500.0,0.0003863,8]
[420321945,1775962292614,-554.77,0.0003863,8]
[420321946,1775962292642,-2592.53,0.0003863,8]
[420321947,1775962292655,-500.0,0.0003863,8]
[420321948,1775962292746,-500.0,0.0003863,8]
[420321949,1775962292758,-541.04,0.0003863,8]
[420321950,1775962292767,-1263.5,0.0003863,8]
[420321951,1775962293023,-507.42,0.0003863,8]
[420321952,1775962293067,-782.54,0.0003863,8]
[420321953,1775962293095,-1419.65,0.0003863,8]
[420321954,1775962293112,-845.57,0.0003863,8]
[420321955,1775962293134,-500.0,0.0003863,8]
[420321956,1775962293148,-500.0,0.0003863,8]
[420321957,1775962293182,-500.0,0.0003863,8]
[420321958,1775962293192,-500.0,0.0003863,8]
[420321959,1775962293214,-500.0,0.0003863,8]
[420321960,1775962293224,-500.0,0.0003863,8]
[420321961,1775962293233,-500.0,0.0003863,8]
[420321962,1775962293247,-161.41063395,0.0003863,8]
[420321963,1775962293261,-1723.0,0.0003863,8]
[420321964,1775962293273,-500.0,0.0003863,8]
[420321965,1775962293283,-513.02026464,0.0003863,8]
[420321966,1775962293309,-500.0,0.0003863,8]
[420321967,1775962293341,-500.0,0.0003863,8]
[420321968,1775962293354,-1062.46,0.0003863,8]
[420321969,1775962293382,-2994.63,0.0003863,8]
[420321970,1775962293395,-500.0,0.0003863,8]
[420321971,1775962293418,-3535.88,0.0003863,8]
[420321972,1775962293435,-1134.27,0.0003863,8]
[420321973,1775962293445,-500.0,0.0003863,8]
[420321974,1775962293462,-1330.18,0.0003863,8]
[420321975,1775962293500,-373.66991441,0.0003863,8]
[420321976,1775962293510,-586.18,0.0003863,8]
[420321977,1775962293545,-1573.55,0.0003863,8]
[420321978,1775962293554,-500.0,0.0003863,8]
[420321979,1775962293592,-500.0,0.0003863,8]
[420321980,1775962293608,-2286.35,0.0003863,8]
[420321981,1775962293634,-940.21,0.0003863,8]
[420321982,1775962293647,-859.31,0.0003863,8]
[420321983,1775962293671,-500.0,0.0003863,8]
[420321984,1775962293681,-500.0,0.0003863,8]
[420321985,1775962293701,-999.54,0.0003863,8]
[420321986,1775962293711,-500.0,0.0003863,8]
[420321987,1775962293730,-2315.57,0.0003863,8]
[420321988,1775962293740,-1151.2,0.0003863,8]
[420321989,1775962293762,-500.0,0.0003863,8]
[420321990,1775962293771,-500.0,0.0003863,8]
[420321991,1775962293796,-500.0,0.0003863,8]
[420321992,1775962293817,-1899.54,0.0003863,8]
[420321993,1775962293832,-500.0,0.0003863,8]
[420321994,1775962293844,-177.95852937,0.0003863,8]
[420321995,1775962293869,-1209.29,0.0003863,8]
[420321996,1775962293878,-500.0,0.0003863,8]
[420321997,1775962293916,-3264.72,0.0003863,8]
[420321998,1775962293928,-500.0,0.0003863,8]
[420321999,1775962293944,-500.0,0.0003863,8]
[420322000,1775962293961,-500.0,0.0003863,8]
[420322001,1775962293974,-500.0,0.0003863,8]
[420322002,1775962293989,-500.0,0.0003863,8]
[420322003,1775962294006,-2092.36,0.0003863,8]
[420322004,1775962294018,-500.0,0.0003863,8]
[420322005,1775962294034,-500.0,0.0003863,8]
[420322006,1775962294065,-3685.81,0.0003863,8]
[420322007,1775962294076,-500.0,0.0003863,8]
[420322008,1775962294091,-500.0,0.0003863,8]
[420322009,1775962294109,-274.30735074,0.0003863,8]
[420322010,1775962294119,-500.0,0.0003863,8]
[420322011,1775962294133,-756.11,0.0003863,8]
[420322012,1775962294146,-404.36108718,0.0003863,8]
[420322013,1775962294155,-500.0,0.0003863,8]
[420322014,1775962294165,-500.0,0.0003863,8]
[420322015,1775962294179,-500.0,0.0003863,8]
[420322016,1775962294190,-1302.51,0.0003863,8]
[420322017,1775962294203,-1397.78,0.0003863,8]
[420322018,1775962294213,-500.0,0.0003863,8]
[420322019,1775962294225,-500.0,0.0003863,8]
[420322020,1775962294236,-566.53625792,0.0003863,8]
[420322021,1775962294253,-500.0,0.0003863,8]
[420322022,1775962294265,-2129.03,0.0003863,8]
[420322023,1775962294276,-500.0,0.0003863,8]
[420322024,1775962294295,-960.97,0.0003863,8]
[420322025,1775962294307,-500.0,0.0003863,8]
[420322026,1775962294319,-1411.28,0.0003863,8]
[420322027,1775962294344,-500.0,0.0003863,8]
[420322028,1775962294356,-500.0,0.0003863,8]
[420322029,1775962294366,-500.0,0.0003863,8]
[420322030,1775962294390,-2114.94,0.0003863,8]
[420322031,1775962294402,-500.0,0.0003863,8]
[420322032,1775962294416,-914.28,0.0003863,8]
[420322033,1775962294440,-1751.08,0.0003863,8]
[420322034,1775962294464,-500.0,0.0003863,8]
[420322035,1775962294501,-500.0,0.0003863,8]
[420322036,1775962294516,-6121.34,0.0003863,8]
[420322037,1775962294558,-500.0,0.0003863,8]
[420322038,1775962294597,-500.0,0.0003863,8]
[420322039,1775962294615,-1224.57,0.0003863,8]
[420322040,1775962294628,-1599.17,0.0003863,8]
[420322041,1775962294638,-797.95,0.0003863,8]
[420322042,1775962294652,-500.0,0.0003863,8]
[420322043,1775962294667,-1177.07,0.0003863,8]
[420322044,1775962294676,-189.00148527,0.0003863,8]
[420322045,1775962294692,-1120.56,0.0003863,8]
[420322046,1775962294708,-2587.31,0.0003863,8]
[420322047,1775962294719,-500.0,0.0003863,8]
[420322048,1775962294733,-928.66,0.0003863,8]
[420322049,1775962294744,-1099.32,0.0003863,8]
[420322050,1775962294754,-517.3,0.0003863,8]
[420322051,1775962294766,-1268.97,0.0003863,8]
[420322052,1775962294776,-500.0,0.0003863,8]
[420322053,1775962294786,-500.0,0.0003863,8]
[420322054,1775962294795,-500.0,0.0003863,8]
[420322055,1775962294808,-500.0,0.0003863,120]
[420322056,1775962294820,-500.0,0.0003863,8]
[420322057,1775962294831,-500.0,0.0003863,8]
[420322058,1775962294841,-500.0,0.0003863,8]
[420322059,1775962294855,-500.0,0.0003863,8]
[420322060,1775962294866,-500.0,0.0003863,8]
[420322061,1775962294886,-609.49696857,0.0003863,8]
[420322062,1775962294896,-4525.89,0.0003863,8]
[420322063,1775962294922,-500.0,0.0003863,8]
[420322064,1775962294931,-575.16,0.0003863,8]
[420322065,1775962294953,-500.0,0.0003863,8]
[420322066,1775962294974,-1780.77,0.0003863,8]
[420322067,1775962294985,-500.0,0.0003863,8]
[420322068,1775962294995,-500.0,0.0003863,8]
[420322069,1775962295014,-500.0,0.0003863,8]
[420322070,1775962295025,-566.06709578,0.0003863,8]
[420322071,1775962295035,-2020.86,0.0003863,8]
[420322072,1775962295045,-500.0,0.0003863,8]
[420322073,1775962295058,-902.82,0.0003863,8]
[420322074,1775962295070,-500.0,0.0003863,8]
[420322075,1775962295080,-1786.62,0.0003863,8]
[420322076,1775962295090,-3598.81,0.0003863,8]
[420322077,1775962295102,-500.0,0.0003863,8]
[420322078,1775962295115,-500.0,0.0003863,8]
[420322079,1775962295125,-737.21,0.0003863,8]
[420322080,1775962295134,-500.0,0.0003863,8]
[420322081,1775962295153,-500.0,0.0003863,8]
[420322082,1775962295164,-500.0,0.0003863,8]
[420322083,1775962295174,-947.5,0.0003863,8]
[420322084,1775962295200,-712.35,0.0003863,8]
[420322085,1775962295226,-184.96503966,0.0003863,8]
[420322086,1775962295261,-500.0,0.0003863,8]
[420322087,1775962295274,-500.0,0.0003863,8]
[420322088,1775962295325,-500.0,0.0003863,8]
[420322089,1775962295356,-500.0,0.0003863,8]
[420322090,1775962295366,-535.39,0.0003863,8]
[420322091,1775962295390,-646.86,0.0003863,8]
[420322092,1775962295494,-523.86,0.0003863,8]
[420322093,1775962295546,-500.0,0.0003863,8]
[420322094,1775962295556,-500.0,0.0003863,8]
[420322095,1775962295577,-1944.75,0.0003863,7]
[420322096,1775962295596,-255.10067956,0.0003863,8]
[420322097,1775962295606,-1055.21,0.0003863,8]
[420322098,1775962295618,-535.95,0.0003863,8]
[420322099,1775962295637,-500.0,0.0003863,8]
[420322100,1775962295659,-500.0,0.0003863,8]
[420322101,1775962295685,-500.0,0.0003863,8]
[420322102,1775962295701,-503.59472482,0.0003863,8]
[420322103,1775962295711,-231.55920586,0.0003863,8]
[420322104,1775962295738,-4299.0,0.0003863,8]
[420322105,1775962295749,-811.11,0.0003863,8]
[420322106,1775962295783,-608.31322607,0.0003863,8]
[420322107,1775962295793,-1629.23,0.0003863,8]
[420322108,1775962295805,-500.0,0.0003863,8]
[420322109,1775962295825,-1167.83,0.0003863,8]
[420322110,1775962295835,-882.74,0.0003863,5]
[420322111,1775962295848,-500.0,0.0003863,8]
[420322112,1775962295866,-500.0,0.0003863,8]
[420322113,1775962295878,-1785.57,0.0003863,8]
[420322114,1775962295903,-1806.77,0.0003863,8]
[420322115,1775962295915,-2573.97,0.0003863,8]
[420322116,1775962295930,-1292.74,0.0003863,8]
[420322117,1775962295946,-500.0,0.0003863,7]
[420322118,1775962295959,-193.00181045,0.0003863,8]
[420322119,1775962295977,-500.0,0.0003863,8]
[420322120,1775962295991,-2727.17,0.0003863,8]
[420322121,1775962296003,-2644.5,0.0003863,8]
[420322122,1775962296026,-1200.86,0.0003863,8]
[420322123,1775962296043,-500.0,0.0003863,8]
[420322124,1775962296059,-853.72,0.0003863,8]
[420322125,1775962296088,-500.0,0.0003863,8]
[420322126,1775962296099,-500.0,0.0003863,8]
[420322127,1775962296119,-1623.12,0.0003863,8]
[420322128,1775962296133,-500.0,0.0003863,8]
[420322129,1775962296144,-500.0,0.0003863,8]
[420322130,1775962296156,-49496.11,0.0003863,8]
[420322131,1775962296173,-1093.89,0.0003863,8]
[420322132,1775962296185,-2364.06,0.0003863,8]
[420322133,1775962296194,-2031.6,0.0003863,8]
[420322134,1775962296203,-500.0,0.0003863,8]
[420322135,1775962296219,-500.0,0.0003863,8]
[420322136,1775962296229,-500.0,0.0003863,8]
[420322137,1775962296238,-500.0,0.0003863,8]
[420322138,1775962296249,-500.0,0.0003863,8]
[420322139,1775962296262,-1223.7,0.0003863,8]
[420322140,1775962296272,-663.73,0.0003863,8]
[420322141,1775962296281,-186.42952437,0.0003863,8]
[420322142,1775962296294,-430.92258881,0.0003863,8]
[420322143,1775962296304,-2099.17,0.0003863,8]
[420322144,1775962296315,-651.75,0.0003863,8]
[420322145,1775962296325,-500.0,0.0003863,8]
[420322146,1775962296335,-500.0,0.0003863,8]
[420322147,1775962296346,-506.96,0.0003863,8]
[420322148,1775962296358,-1583.13,0.0003863,8]
[420322149,1775962296368,-1318.79,0.0003863,8]
[420322150,1775962296378,-500.0,0.0003863,8]
[420322151,1775962296391,-3400.55,0.0003863,8]
[420322152,1775962296406,-235.12107001,0.0003863,8]
[420322153,1775962296418,-64047.73,0.0003863,8]
[420322154,1775962296430,-500.0,0.0003863,8]
[420322155,1775962296446,-500.0,0.0003863,8]
[420322156,1775962296457,-500.0,0.0003863,8]
[420322157,1775962296466,-500.0,0.0003863,8]
[420322158,1775962296478,-1766.54,0.0003863,8]
[420322159,1775962296509,-500.0,0.0003863,8]
[420322160,1775962296518,-500.0,0.0003863,8]
[420322161,1775962296532,-500.0,0.0003863,8]
[420322162,1775962296548,-4232.92,0.0003863,8]
[420322163,1775962296558,-500.0,0.0003863,8]
[420322164,1775962296569,-500.0,0.0003863,8]
[420322165,1775962296582,-1641.23,0.0003863,8]
[420322166,1775962296593,-1823.64,0.0003863,8]
[420322167,1775962296603,-1873.01,0.0003863,8]
[420322168,1775962296626,-1615.32,0.0003863,8]
[420322169,1775962296635,-500.0,0.0003863,8]
[420322170,1775962296654,-500.0,0.0003863,8]
[420322171,1775962296663,-500.0,0.0003863,8]
[420322172,1775962296689,-500.0,0.0003863,8]
[420322173,1775962296699,-500.0,0.0003863,8]
[420322174,1775962296712,-500.0,0.0003863,8]
[420322175,1775962296742,-565.82,0.0003863,8]
[420322176,1775962296752,-3329.99,0.0003863,8]
[420322177,1775962296761,-500.0,0.0003863,8]
[420322178,1775962296779,-2489.24,0.0003863,8]
[420322179,1775962296790,-618.23,0.0003863,8]
[420322180,1775962296807,-500.0,0.0003863,8]
[420322181,1775962296819,-500.0,0.0003863,8]
[420322182,1775962296831,-2204.81,0.0003863,8]
[420322183,1775962296842,-500.0,0.0003863,8]
[420322184,1775962296878,-564.08,0.0003863,8]
[420322185,1775962296887,-534.38,0.0003863,8]
[420322186,1775962296962,-3515.32,0.0003863,8]
[420322187,1775962296979,-500.0,0.0003863,8]
[420322188,1775962296988,-500.0,0.0003863,8]
[420322189,1775962297012,-2387.03,0.0003863,8]
[420322190,1775962297027,-1926.86,0.0003863,8]
[420322191,1775962297037,-713.8,0.0003863,8]
[420322192,1775962297046,-1000.0,0.0003863,8]
[420322193,1775962297058,-277.26375784,0.0003863,8]
[420322194,1775962297069,-556.0314,0.0003863,8]
[420322195,1775962297078,-500.0,0.0003863,8]
[420322196,1775962297088,-500.0,0.0003863,8]
[420322197,1775962297098,-500.0,0.0003863,8]
[420322198,1775962297108,-2181.58,0.0003863,8]
[420322199,1775962297120,-500.0,0.0003863,8]
[420322200,1775962297134,-500.0,0.0003863,8]
[420322201,1775962297144,-1083.91,0.0003863,8]
[420322202,1775962297153,-2849.34,0.0003863,8]
[420322203,1775962297170,-4719.47,0.0003863,8]
[420322204,1775962297181,-500.0,0.0003863,8]
[420322205,1775962297191,-500.0,0.0003863,8]
[420322206,1775962297206,-500.0,0.0003863,8]
[420322207,1775962297228,-500.0,0.0003863,8]
[420322208,1775962297238,-500.0,0.0003863,8]
[420322209,1775962297251,-500.0,0.0003863,8]
[420322210,1775962297283,-4243.2,0.0003863,8]
[420322211,1775962297294,-918.45,0.0003863,8]
[420322212,1775962297315,-500.0,0.0003863,8]
[420322213,1775962297342,-1222.85,0.0003863,8]
[420322214,1775962297365,-1136.94,0.0003863,8]
[420322215,1775962297401,-3098.1,0.0003863,8]
[420322216,1775962297430,-1037.91,0.0003863,8]
[420322217,1775962297450,-500.0,0.0003863,8]
[420322218,1775962297490,-500.0,0.0003863,8]
[420322219,1775962297517,-500.0,0.0003863,8]
[420322220,1775962297529,-500.0,0.0003863,8]
[420322221,1775962297539,-1381.72,0.0003863,8]
[420322222,1775962297571,-500.0,0.0003863,8]
[420322223,1775962297585,-1370.01,0.0003863,8]
[420322224,1775962297604,-2672.82,0.0003863,8]
[420322225,1775962297613,-693.33,0.0003863,8]
[420322226,1775962297626,-719.75,0.0003863,8]
[420322227,1775962297641,-557.59,0.0003863,8]
[420322228,1775962297655,-500.0,0.0003863,8]
[420322229,1775962297664,-714.68,0.0003863,8]
[420322230,1775962297674,-933.97,0.0003863,8]
[420322231,1775962297686,-2960.63,0.0003863,8]
[420322232,1775962297697,-468.1774798,0.0003863,8]
[420322233,1775962297707,-2767.62,0.0003863,8]
[420322234,1775962297718,-1028.83,0.0003863,8]
[420322235,1775962297727,-500.0,0.0003863,8]
[420322236,1775962297744,-500.0,0.0003863,8]
[420322237,1775962297754,-625.81,0.0003863,8]
[420322238,1775962297763,-993.82,0.0003863,8]
[420322239,1775962297775,-500.0,0.0003863,8]
[420322240,1775962297787,-500.0,0.0003863,8]
[420322241,1775962297796,-1039.59,0.0003863,8]
[420322242,1775962297805,-500.0,0.0003863,8]
[420322243,1775962297814,-626.10263037,0.0003863,8]
[420322244,1775962297836,-17970.81,0.0003863,8]
[420322245,1775962297845,-500.0,0.0003863,8]
[420322246,1775962297854,-1326.65,0.0003863,8]
[420322247,1775962297864,-602.28,0.0003863,8]
[420322248,1775962297879,-2316.84,0.0003863,8]
[420322249,1775962297888,-500.0,0.0003863,8]
[420322250,1775962297898,-850.68,0.0003863,8]
[420322251,1775962297908,-500.0,0.0003863,8]
[420322252,1775962297928,-1406.41,0.0003863,8]
[420322253,1775962297937,-500.0,0.0003863,8]
[420322254,1775962297947,-1777.58,0.0003863,8]
[420322255,1775962297958,-273.75202403,0.0003863,8]
[420322256,1775962297986,-2035.99,0.0003863,8]
[420322257,1775962297998,-1059.46,0.0003863,8]
[420322258,1775962298011,-2681.16,0.0003863,8]
[420322259,1775962298031,-500.0,0.0003863,8]
[420322260,1775962298049,-500.0,0.0003863,8]
[420322261,1775962298087,-1597.03,0.0003863,8]
[420322262,1775962298151,-500.0,0.0003863,8]
[420322263,1775962298218,-800.53,0.0003863,8]
[420322264,1775962298267,-3424.64,0.0003863,8]
[420322265,1775962298278,-512.38,0.0003863,8]
[420322266,1775962298288,-500.0,0.0003863,8]
[420322267,1775962298303,-990.39,0.0003863,8]
[420322268,1775962298315,-1479.87,0.0003863,8]
[420322269,1775962298324,-924.61,0.0003863,8]
[420322270,1775962298334,-500.0,0.0003863,8]
[420322271,1775962298349,-500.0,0.0003863,8]
[420322272,1775962298359,-559.61,0.0003863,8]
[420322273,1775962298369,-1723.86,0.0003863,8]
[420322274,1775962298379,-500.0,0.0003863,8]
[420322275,1775962298394,-500.0,0.0003863,8]
[420322276,1775962298403,-804.68349155,0.0003863,8]
[420322277,1775962299285,-281.154455,0.00038356,120]
[420322278,1775962299295,-18.32603378,0.0003863,8]
[420322279,1775962300108,-970.0623945,0.000249,5]
[420322280,1775962300642,-4561.9376055,0.000249,5]
[420322281,1775962300657,-509.0,0.00027137,2]
[420322282,1775962300682,-1929.33,0.00038356,8]
[420322283,1775962300692,-500.0,0.00038356,8]
[420322284,1775962300701,-500.0,0.00038356,8]
[420322285,1775962300715,-500.0,0.00038356,8]
[420322286,1775962300736,-757.52047467,0.0003863,8]
[420322287,1775962300746,-1256.37,0.0003863,8]
[420322288,1775962300756,-1242.22,0.0003863,8]
[420322289,1775962300766,-500.0,0.0003863,8]
[420322290,1775962300780,-557.38,0.0003863,8]
[420322291,1775962300796,-500.0,0.0003863,8]
[420322292,1775962300806,-50.08224958,0.0003863,8]
[420322293,1775962302382,-276.258651,0.00024658,2]
[420322294,1775962302394,-497.894439,0.00024658,2]
[420322295,1775962302405,-210.74857488,0.00024658,2]
[420322296,1775962302417,-65.51007612,0.00024658,2]
[420322297,1775962302426,-653.77093445,0.00024658,10]
[420322298,1775962302529,-703.22906555,0.00024658,10]
[420322299,1775962302538,-497.894439,0.00024658,2]
[420322300,1775962302551,-509.0,0.00028396,3]
[420322301,1775962302561,-509.0,0.00029654,4]
[420322302,1775962302571,-276.258651,0.0003,7]
[420322303,1775962302580,-509.0,0.00030913,6]
[420322304,1775962302591,-509.0,0.00032172,7]
[420322305,1775962302603,-509.0,0.0003343,8]
[420322306,1775962302617,-509.0,0.00034689,10]
[420322307,1775962302630,-509.0,0.00035947,11]
[420322308,1775962302640,-509.0,0.00037206,13]